Cogmind - Beta 13 @@@ ROGUE MODE // 2024.04.11 @ 20:16:55 // AFD2020/Player2 Player: Demo Result: Destroyed by X-72 Disruptor with Improved Arc Projector Performance ------------- Evolutions (5) 2500 Regions Visited (12) 2400 Robots Destroyed (132) 660 Value Destroyed (5665) 5665 Prototype IDs (9) 180 Alien Tech Used (0) 0 Bonus (5034) 5034 TOTAL SCORE: 16439 Bonus ------- High Alert Combat Kills 1695 Follower Combat Kills 3244 Entered Garrisons 600 Used RIF Installer 500 Entered DSFs 500 Friendly Fire -1505 Cogmind --------- Core Integrity 0/1000 Matter 10/300 Energy 16/310 System Corruption 13% Temperature Cool (0) Movement Rolling (160) Ox4 Location -5/Factory Parts ------- > --- POWER (2) -------- Reinforced Fission Core > --- PROPULSION (3) --- Advanced VSS Leg Armored Huge Wheel > --- UTILITY (9) ------ Huge Storage Unit Machine Analyzer Advanced Signal Interpreter Improved Medium Armor Plating Advanced Shield Generator Hacking Suite > --- WEAPON (3) ------- Heavy Mass Driver Heavy Mace > --- INVENTORY (25) --- Neutrino Core Antimatter Reactor Wheel Armored Huge Wheel Armored Huge Wheel Armored Huge Wheel Advanced Heat Sink Large Storage Unit Energy Well (350) Compact Matter Pod (0) Gravity Neutralizer Advanced Particle Charger Relay Coupler [Grunt] (23) Improved Remote Datajack Improved Plasma Cutter Katana Peak State ------------ > --- POWER ------------ Reinforced Fission Core Antimatter Reactor > --- PROPULSION ------- Advanced VSS Leg Armored Huge Wheel > --- UTILITY ---------- Advanced Cooling System Huge Storage Unit Machine Analyzer Improved Sensor Array Advanced Signal Interpreter Improved Thermal Shield Advanced Shield Generator Hacking Suite Hacking Suite > --- WEAPON ----------- Heavy Mass Driver Hypervelocity Gauss Cannon > --- INVENTORY -------- Neutrino Core Antimatter Reactor Wheel Armored Huge Wheel Armored Huge Wheel Armored Huge Wheel Advanced Heat Sink Large Storage Unit Energy Well Compact Matter Pod Gravity Neutralizer Advanced Particle Charger Improved Medium Armor Plating Relay Coupler [Grunt] Proton Missile Launcher Improved Remote Datajack Improved Plasma Cutter Heavy Mace Katana [Rating: 91] Favorites ----------- Power Cooled Ion Engine Engine Cooled Ion Engine Power Core Reinforced Fission Core Reactor Antimatter Reactor Propulsion Wheel Treads Light Treads Leg Carbon-fiber Leg Wheel Wheel Flight Unit Improved VTOL Module Utility Hacking Suite Device Advanced Heat Sink Storage Huge Storage Unit Processor Improved Signal Interpreter Hackware Hacking Suite Protection Improved Light Armor Plating Weapon Advanced Beam Cannon Energy Gun Pulse Rifle Energy Cannon Advanced Beam Cannon Ballistic Gun Gauss Rifle Ballistic Cannon Hypervelocity Gauss Cannon Launcher Proton Missile Launcher Impact Weapon Heavy Mace Build | -11 -10 -9 -8 -7 -7 -7 -7 -6 -6 -5 -5 -5 ------- Run | Yrd Mat Mat Mat Fac Gar Fac Gar Fac DSF Fac Gar Fac Slots Evolved 10 | . . 2 2 2 . . . 2 . 2 . . Power 1 | . . . . . . . . 1 . . . . Propulsion 1 | . . . 1 . . . . . . . . . Utility 7 | . . 1 1 2 . . . 1 . 2 . . Weapon 1 | . . 1 . . . . . . . . . . Parts Attached 161 | 7 1 14 22 9 20 8 11 3 5 16 22 23 Power 17 | 1 . 1 1 1 . . 1 1 1 2 3 5 Engine 8 | 1 . 1 1 1 . . . 1 1 2 . . Core 8 | . . . . . . . 1 . . . 3 4 Reactor 1 | . . . . . . . . . . . . 1 Propulsion 37 | 3 . 5 10 . 6 . 2 . 2 2 3 4 Treads 8 | 1 . . 3 . 2 . 2 . . . . . Leg 3 | . . . . . . . . . . . . 3 Wheel 25 | 2 . 5 6 . 4 . . . 2 2 3 1 Hover . | . . . . . . . . . . . . . Flight 1 | . . . 1 . . . . . . . . . Utility 49 | 1 1 3 6 5 6 3 1 1 . 7 8 7 Device 31 | . . 3 3 2 5 2 1 1 . 4 5 5 Storage 3 | 1 1 . 1 . . . . . . . . . Processor 3 | . . . . 1 . . . . . 2 . . Hackware 5 | . . . . 2 . . . . . 1 1 1 Protection 7 | . . . 2 . 1 1 . . . . 2 1 Artifact . | . . . . . . . . . . . . . Weapon 58 | 2 . 5 5 3 8 5 7 1 2 5 8 7 Energy Gun 18 | 2 . 3 2 1 3 2 1 1 1 1 1 . Energy Cannon 12 | . . 1 1 1 1 2 2 . . 2 2 . Ballistic Gun 11 | . . . 2 . 3 . 1 . . . 3 2 Ballistic Cannon 2 | . . . . . . . . . . . . 2 Launcher 14 | . . 1 . 1 1 1 3 . 1 2 2 2 Special Weapon . | . . . . . . . . . . . . . Impact Weapon 1 | . . . . . . . . . . . . 1 Slashing Weapon . | . . . . . . . . . . . . . Piercing Weapon . | . . . . . . . . . . . . . Special Melee Weapon . | . . . . . . . . . . . . . Unidentified Prototypes 9 | . . 4 3 . . 1 . . . 1 . . Parts Lost 53 | . . 1 4 2 11 3 3 . . 9 5 15 Power 5 | . . . . 1 . . . . . 2 . 2 Propulsion 14 | . . . 2 . 5 . 1 . . 2 2 2 Utility 13 | . . . 1 . 1 2 . . . 2 1 6 Weapon 21 | . . 1 1 1 5 1 2 . . 3 2 5 Highest Loss Streak 9 | . . 1 4 2 4 3 2 . . 9 4 9 To Critical Strikes 1 | . . . . . . . . . . 1 . . Average Slot Usage (%) 96 | . 97 94 96 99 98 99 98 100 93 91 93 92 Engine 5 | . 14 11 9 7 7 7 . 6 6 6 5 . Core 3 | . . . . . . . 6 6 6 3 5 9 Treads 2 | . 14 3 4 . 2 . 6 6 . . . . Wheel 15 | . 14 18 20 23 18 23 15 13 12 10 10 7 Device 14 | . . 11 19 16 8 14 15 20 20 17 17 18 Storage 8 | . 26 22 10 7 7 7 7 6 6 5 5 5 Processor 6 | . . . . 6 7 7 7 6 6 11 11 11 Hackware 9 | . . . . 14 14 7 7 6 6 10 11 15 Protection 3 | . . . 4 . 5 6 7 6 6 3 3 . Energy Gun 8 | . 28 23 13 6 10 6 8 6 2 3 4 3 Energy Cannon 5 | . . 2 9 7 8 6 9 6 6 6 1 . Ballistic Gun 5 | . . . 4 6 3 7 1 6 6 3 9 10 Naked Turns . | . . . . . . . . . . . . . Heaviest Build 157 | 12 32 43 105 105 107 111 114 117 121 121 140 157 Greatest Support 50 | 10 10 32 38 38 38 38 38 28 44 50 50 38 Greatest Overweight (x) 10 | 1 3 3 4 2 10 2 4 4 4 4 3 5 Average Overweight (x) 2 | . 2 1 1 2 3 2 3 4 2 2 2 3 Largest Inventory Capacity 25 | 8 15 15 25 25 25 25 25 25 25 25 25 25 Average Capacity 23 | 7 14 15 19 25 25 25 25 25 25 25 25 25 Most Carried 25 | 5 10 15 22 24 25 25 25 24 25 25 25 25 Average Carried 21 | 1 7 11 16 21 23 23 23 22 24 22 24 24 Final Capacity 25 | 8 15 15 25 25 25 25 25 25 25 25 25 25 Final Carried 25 | 5 10 13 22 22 23 22 25 22 25 21 25 19 Class Distribution -------------------- 53% | Scavenger-Tank 22% | Scavenger-Skirmisher 7% | Mutant 4% | Gunner 4% | Tank 3% | Scavenger-Gunner Dominant Class ---------------- Mutant | -10/Materials Gunner | -9/Materials Scavenger-Tank | -8/Materials Scavenger-Skirmisher | -7/Factory Scavenger-Tank | -7/Garrison Scavenger-Tank | -7/Factory Scavenger-Tank | -7/Garrison Scavenger-Tank | -6/Factory Scavenger-Tank | -6/DSF Scavenger-Skirmisher | -5/Factory Scavenger-Tank | -5/Garrison Scavenger-Skirmisher | -5/Factory Resources | -11 -10 -9 -8 -7 -7 -7 -7 -6 -6 -5 -5 -5 ----------- Run | Yrd Mat Mat Mat Fac Gar Fac Gar Fac DSF Fac Gar Fac Matter Collected 2921 | 94 77 242 426 81 252 117 209 . 46 231 605 541 Remotely . | . . . . . . . . . . . . . Salvage Created 5516 | 200 118 381 872 273 445 269 404 . 404 374 1186 590 Parts 276 | 12 9 26 60 17 26 11 17 . 7 19 44 28 Haulers Intercepted 2 | . . 1 . . . . . . 1 . . . Recyclers Shooed 7 | . 1 . 2 . . . . . . 3 . 1 Parts Field Recycled . | . . . . . . . . . . . . . Retrieved Matter . | . . . . . . . . . . . . . Parts Self-Destructed . | . . . . . . . . . . . . . Prevented . | . . . . . . . . . . . . . Kills | -11 -10 -9 -8 -7 -7 -7 -7 -6 -6 -5 -5 -5 ------- Run | Yrd Mat Mat Mat Fac Gar Fac Gar Fac DSF Fac Gar Fac Combat Hostiles Destroyed 101 | . 3 7 17 6 12 5 10 . 2 5 20 14 Guns 49 | . 3 6 10 1 6 2 1 . 1 . 13 6 Cannons 28 | . . . 7 2 3 1 5 . . 4 5 1 AOE 21 | . . 1 . 3 3 2 4 . 1 1 . 6 Classes Destroyed 19 | 2 4 5 1 1 2 . 1 . 1 . 1 1 Worker 6 | . . . 4 . . . . . . 2 . . Builder 2 | . . 1 1 . . . . . . . . . Tunneler 5 | 4 . 1 . . . . . . . . . . Hauler 2 | . . 1 . . . . . . 1 . . . Recycler 3 | 1 . 1 . 1 . . . . . . . . Operator 2 | . 1 . 1 . . . . . . . . . Watcher 9 | . 1 . 3 1 1 . . . . 2 . 1 Swarmer 23 | . 1 . 4 . 3 . 4 . . 2 4 5 Cutter 1 | . . . . . . . . . 1 . . . Saboteur 3 | . . . . . 2 . . . . . . 1 Grunt 42 | . 2 4 10 3 2 4 2 . 1 . 10 4 Brawler 3 | . . 1 . . . . . . . 1 1 . Duelist 3 | . . 1 . . 1 . . . . 1 . . Sentry 13 | . . 1 3 1 3 1 2 . . . 2 . Specialist 5 | . . . . . 2 . . . . . 1 2 Hunter 4 | . . . . . . . 2 . . 1 1 . Programmer 4 | . . . . 2 1 . . . . . . 1 Heavy 1 | . . . . . . . . . . . . 1 Behemoth 1 | . . . . . . . . . . . 1 . Best Kill Streak 9 | 5 2 5 6 5 3 3 3 . 1 9 8 4 Combat Bots Only 8 | . 1 3 4 3 3 3 3 . 1 5 8 4 Max Kills in Single Turn 3 | 1 1 2 2 2 2 2 2 . 1 2 2 3 Gunslinging . | . . . . . . . . . . . . . Exploded 2 | . . 1 . 1 1 2 2 . 1 1 . 2 Melee . | . . . . . . . . . . . . . Uniques/NPCs Destroyed . | . . . . . . . . . . . . . Combat | -11 -10 -9 -8 -7 -7 -7 -7 -6 -6 -5 -5 -5 -------- Run | Yrd Mat Mat Mat Fac Gar Fac Gar Fac DSF Fac Gar Fac Hostile Shots Fired 760 | . 19 7 48 20 159 21 79 . . 80 102 225 Missed 233 | . 8 2 12 6 49 9 16 . . 21 35 75 Damage Taken 7707 | . 169 125 482 278 1430 261 506 . . 1291 701 2464 Core 1036 | . 41 22 27 14 286 27 44 . . 149 94 332 Absorbed by Shields 845 | . . . 22 37 51 110 115 . . 37 . 473 Ignored by Resistances 469 | . . . . . . . . . . 99 156 214 Core Remaining (%) 64 | 100 63 85 70 . . . 13 . 58 . . . Volleys Fired 412 | 15 23 23 53 12 104 8 38 . 11 17 62 46 Largest 3 | 2 2 3 3 3 3 3 3 . 3 3 3 3 Hottest 223 | 90 90 173 173 154 204 159 223 . 171 223 188 127 Shots Fired 886 | 30 46 54 146 31 173 23 74 . 29 36 125 119 Gun 541 | 30 46 45 93 15 72 15 41 . 15 8 74 87 Cannon 299 | . . 4 53 10 98 7 28 . 9 25 39 26 Launcher 46 | . . 5 . 6 3 1 5 . 5 3 12 6 Special . | . . . . . . . . . . . . . Kinetic 213 | . . . 19 9 8 8 7 . 9 4 52 97 Thermal 457 | 15 23 28 97 16 133 14 48 . 15 29 39 . Explosive 17 | . . 5 . 6 3 . 3 . . . . . Electromagnetic 199 | 15 23 21 30 . 29 1 16 . 5 3 34 22 Robot Hit Streak 20 | 5 8 15 14 11 20 8 14 . 4 6 17 9 Robot Miss Streak 19 | 6 2 3 9 3 2 4 5 . 5 3 6 19 Penetration Max 1 | . . . . . 1 1 . . . 1 1 1 Secondary Targets 3 | . 1 1 . . . . . . . . 1 . Max Gunslinging Chain 1 | . 1 1 . . . . . . . . 1 . Shots Hit Robots 478 | 14 30 35 84 16 91 7 37 . 10 23 65 66 Core Hits 339 | 6 8 29 89 20 48 9 22 . 7 18 39 44 Critical Kills 5 | . . . 1 . . 1 . . 1 . 2 . Critical Parts Destroyed 7 | . . . . . . . . . . 1 1 5 Critical Strikes 18 | . 1 1 1 . 2 1 2 . 1 1 3 5 Burn 5 | . 1 . . . 2 . 2 . . . . . Meltdown 2 | . . . 1 . . . . . . . 1 . Destroy 10 | . . . . . . 1 . . 1 1 2 5 Corrupt 1 | . . 1 . . . . . . . . . . Melee Attacks 1 | . . . . . . . . . . . . 1 Impact 1 | . . . . . . . . . . . . 1 Slashing . | . . . . . . . . . . . . . Piercing . | . . . . . . . . . . . . . Sneak Attacks . | . . . . . . . . . . . . . Combat Hostiles . | . . . . . . . . . . . . . Follow-up Attacks . | . . . . . . . . . . . . . Damage Inflicted 12660 | 205 435 697 1642 808 2093 473 993 . 298 968 1825 2223 Guns 5992 | 205 435 442 1021 145 1199 115 452 . 131 112 829 906 Cannons 3406 | . . 41 565 153 669 61 310 . 52 486 832 237 Explosions 3155 | . . 214 56 510 225 297 231 . 115 370 164 973 Melee 58 | . . . . . . . . . . . . 58 Ramming 49 | . . . . . . . . . . . . 49 Kinetic 2377 | . . . 107 67 162 81 99 . 97 78 660 1026 Thermal 5869 | 88 213 253 1249 339 1554 111 567 . 86 520 832 57 Explosive 1577 | . . 214 . 402 225 182 146 . . . . 408 Electromagnetic 2730 | 117 222 230 286 . 152 99 181 . 115 370 333 625 Impact 58 | . . . . . . . . . . . . 58 Slashing . | . . . . . . . . . . . . . Piercing . | . . . . . . . . . . . . . Highest Corruption 12 | . . . . . . . . . . 8 8 12 Average Corruption 8 | . . . . . . . . . . 7 8 8 Corruption Purged . | . . . . . . . . . . . . . Corruption Blocked . | . . . . . . . . . . . . . Effects 76 | . . . . . . . . . . 3 39 34 Message Errors 16 | . . . . . . . . . . . 8 8 Matter Fused 20 | . . . . . . . . . . 1 8 11 Heat Flow Errors 7 | . . . . . . . . . . 1 5 1 Energy Discharges 7 | . . . . . . . . . . 1 3 3 Parts Rejected 1 | . . . . . . . . . . . 1 . Data Loss (minor) 8 | . . . . . . . . . . . 3 5 Data Loss (major) 3 | . . . . . . . . . . . 1 2 Misfires 8 | . . . . . . . . . . . 5 3 Alerts 3 | . . . . . . . . . . . 2 1 Weapon Failures 3 | . . . . . . . . . . . 3 . Overload Shots . | . . . . . . . . . . . . . Overflow Damage 179 | . . 18 36 9 38 1 . . . 36 1 40 Projectiles 48 | . . . 15 . 4 . . . . 25 1 3 Explosions 111 | . . 18 21 9 34 1 . . . 11 . 17 Melee 20 | . . . . . . . . . . . . 20 Knockbacks 6 | . . . . . . . . . . . . 6 Impact 1 | . . . . . . . . . . . . 1 Kinetic 5 | . . . . . . . . . . . . 5 Secondary . | . . . . . . . . . . . . . Self-Inflicted Damage 241 | . . 22 . 20 . . 10 . . . . 189 Shots 6 | . . 1 . 1 . . 1 . . . . 3 Rammed 4 | . . . . . . . . . . . . 4 Targets Rammed 4 | . . . . . . . . . . . . 4 Kicked . | . . . . . . . . . . . . . Crushed . | . . . . . . . . . . . . . Highest Temperature 370 | 370 246 226 339 36 192 78 214 . . 283 218 175 Average Temperature 85 | 172 82 87 94 13 64 26 83 . . 110 55 22 Received Heat Transfer 2296 | . 48 57 205 83 358 20 95 . . 590 291 549 Effects 4 | 2 . 1 1 . . . . . . . . . Energy Bleed 4 | 2 . 1 1 . . . . . . . . . Siege Activations . | . . . . . . . . . . . . . Robots Corrupted 2 | . . . . . . . . . . . 1 1 Combat Hostiles 2 | . . . . . . . . . . . 1 1 Parts Fried 7 | 2 . . . . 1 . . . . 1 2 1 Impact Corruptions 1 | . . . . . . . . . . . . 1 Robots Melted 2 | . . . 1 . . . . . . . 1 . Combat Hostiles 1 | . . . . . . . . . . . 1 . Parts Melted 16 | 1 . . . . 2 . 3 . . 3 7 . Heat Transferred 11012 | 259 647 521 1686 457 3111 235 1245 . 174 1024 1600 53 Parts Sabotaged 2 | . . . . . . . . . . . . 2 Parts Stolen . | . . . . . . . . . . . . . Parts Stripped . | . . . . . . . . . . . . . Power Chain Reactions 8 | . . . 1 . . 1 . . 5 . . 1 Alert | -11 -10 -9 -8 -7 -7 -7 -7 -6 -6 -5 -5 -5 ------- Run | Yrd Mat Mat Mat Fac Gar Fac Gar Fac DSF Fac Gar Fac Peak Influence 1645 | 25 333 618 1147 702 1450 982 1253 657 577 548 1300 1645 Initial 760 | . 16 140 260 352 215 760 655 657 459 302 383 682 Average 747 | 10 226 344 671 543 767 892 1029 657 516 348 1009 864 Maximum Alert Level 5 | . 1 2 4 3 4 3 4 2 2 2 4 5 Low Security (%) 5 | 100 41 44 . . . . . . . . . . Level 1 14 | . 58 6 25 22 16 . . . . 83 1 . Level 2 27 | . . 48 17 64 33 . 6 100 100 16 14 46 Level 3 38 | . . . 55 12 32 100 56 . . . 50 32 Level 4 14 | . . . . . 17 . 36 . . . 33 18 Level 5 . | . . . . . . . . . . . . 2 High Security . | . . . . . . . . . . . . . Max Security . | . . . . . . . . . . . . . Squads Dispatched 25 | . 2 . 2 7 . 2 . . 2 4 . 6 Investigation 6 | . 1 . 1 1 . . . . . 1 . 2 Extermination 3 | . . . . 2 . . . . . . . 1 Reinforcement 9 | . 1 . . 2 . 1 . . 2 1 . 2 Assault 3 | . . . 1 1 . . . . . . . 1 Garrison 4 | . . . . 1 . 1 . . . 2 . . Intercept . | . . . . . . . . . . . . . Searches Triggered . | . . . . . . . . . . . . . Construction Impeded 2 | . . . . 1 . . . . . 1 . . Haulers Reinforced 1 | . . . . . . 1 . . . . . . Active Scanning Responses . | . . . . . . . . . . . . . Cargo Convoy Interrupts 1 | . . . . . . . . . . . . 1 Stealth | -11 -10 -9 -8 -7 -7 -7 -7 -6 -6 -5 -5 -5 --------- Run | Yrd Mat Mat Mat Fac Gar Fac Gar Fac DSF Fac Gar Fac Distress Signals 11 | . 1 . 4 1 1 2 . . . . . 2 Communications Jammed . | . . . . . . . . . . . . . Distress Signals . | . . . . . . . . . . . . . Times Spotted 248 | . 7 12 44 16 39 12 18 . 5 14 27 54 Peak Tracking Total 14 | . 3 5 7 6 5 4 6 . 3 9 5 14 Tactical Retreats 4 | . . . 2 . 1 . . . . . . 1 Traps | -11 -10 -9 -8 -7 -7 -7 -7 -6 -6 -5 -5 -5 ------- Run | Yrd Mat Mat Mat Fac Gar Fac Gar Fac DSF Fac Gar Fac Traps Triggered 19 | . 1 . . . 3 1 5 . . . 8 1 Indirectly . | . . . . . . . . . . . . . Trap Hack Attempts . | . . . . . . . . . . . . . Triggered . | . . . . . . . . . . . . . Disarmed . | . . . . . . . . . . . . . Reprogrammed 12 | . . . . 12 . . . . . . . . Reused 1 | . . . . 1 . . . . . . . . Traps Extracted . | . . . . . . . . . . . . . Installed . | . . . . . . . . . . . . . Triggered 2 | . . . . 2 . . . . . . . . Objects Rigged 2 | . . . . 2 . . . . . . . . Exploded 1 | . . . . 1 . . . . . . . . Machines | -11 -10 -9 -8 -7 -7 -7 -7 -6 -6 -5 -5 -5 ---------- Run | Yrd Mat Mat Mat Fac Gar Fac Gar Fac DSF Fac Gar Fac Machines Disabled 41 | . 1 2 3 2 1 2 4 . 1 1 1 23 Max in Single Turn 2 | . . 1 1 2 . 2 1 . 1 . 1 2 Garrison Relay 2 | . . . . . . . 2 . . . . . Machines Repaired . | . . . . . . . . . . . . . Machines Dismantled . | . . . . . . . . . . . . . Machines Sabotaged . | . . . . . . . . . . . . . Overloaded Fab Kills . | . . . . . . . . . . . . . Hacking | -11 -10 -9 -8 -7 -7 -7 -7 -6 -6 -5 -5 -5 --------- Run | Yrd Mat Mat Mat Fac Gar Fac Gar Fac DSF Fac Gar Fac Machines Accessed 35 | . 3 2 9 7 2 3 2 1 . 2 1 3 Terminals 28 | . 3 2 8 5 2 2 2 1 . 1 1 1 Fabricators 2 | . . . . . . . . . . . . 2 Repair Stations . | . . . . . . . . . . . . . Recycling Units . | . . . . . . . . . . . . . Scanalyzers 2 | . . . 1 1 . . . . . . . . Garrison Access 3 | . . . . 1 . 1 . . . 1 . . Total Hacks 77 | . 5 5 23 19 4 4 3 1 . 4 3 6 Successful 40 | . 1 2 10 14 2 1 2 1 . 2 1 4 Failed 37 | . 4 3 13 5 2 3 1 . . 2 2 2 Catastrophic 10 | . 1 1 4 1 . 1 1 . . 1 . . Database Lockouts . | . . . . . . . . . . . . . Manual 43 | . 3 5 13 12 . 3 1 . . 3 1 2 Terminals 59 | . 5 5 18 13 4 3 3 1 . 2 3 2 Fabricators 4 | . . . . . . . . . . . . 4 Repair Stations . | . . . . . . . . . . . . . Recycling Units . | . . . . . . . . . . . . . Scanalyzers 9 | . . . 5 4 . . . . . . . . Garrison Access 5 | . . . . 2 . 1 . . . 2 . . Terminal Hacks 18 | . 1 2 3 6 2 . 2 1 . . 1 . Robot Analysis 3 | . 1 2 . . . . . . . . . . Open Door 2 | . . . . . 1 . 1 . . . . . Open DSF 1 | . . . . . . . . 1 . . . . Emergency Access Points 3 | . . . . . 1 . 1 . . . 1 . Terminal Index 1 | . . . . 1 . . . . . . . . Alert Level 1 | . . . . 1 . . . . . . . . Unreport Threat 4 | . . . 2 2 . . . . . . . . Reprogram Traps 2 | . . . . 2 . . . . . . . . Zone Layout 1 | . . . 1 . . . . . . . . . Fabricator Hacks 4 | . . . . . . . . . . . . 4 Network Status 1 | . . . . . . . . . . . . 1 Load Schematic 1 | . . . . . . . . . . . . 1 Build 2 | . . . . . . . . . . . . 2 Repair Station Hacks . | . . . . . . . . . . . . . Recycling Unit Hacks . | . . . . . . . . . . . . . Scanalyzer 8 | . . . 4 4 . . . . . . . . Insert Component 4 | . . . 2 2 . . . . . . . . Analyze 4 | . . . 2 2 . . . . . . . . Garrison Access Hacks 3 | . . . . 1 . 1 . . . 1 . . Unlock Access 3 | . . . . 1 . 1 . . . 1 . . Unauthorized Hacks 7 | . . . 3 3 . . . . . 1 . . Terminals 6 | . . . 3 3 . . . . . . . . Track 1 | . . . 1 . . . . . . . . . Assimilate 3 | . . . 1 2 . . . . . . . . Detonate 1 | . . . . 1 . . . . . . . . Operators 1 | . . . 1 . . . . . . . . . Fabricators . | . . . . . . . . . . . . . Repair Stations . | . . . . . . . . . . . . . Recycling Units . | . . . . . . . . . . . . . Scanalyzers . | . . . . . . . . . . . . . Garrison Access 1 | . . . . . . . . . . 1 . . Reprogram 1 | . . . . . . . . . . 1 . . Data Cores Recovered 1 | . 1 . . . . . . . . . . . Used 1 | . 1 . . . . . . . . . . . Hacking Detections 32 | . 3 2 9 7 1 3 1 . . 2 1 3 Full Trace Events 4 | . . . 1 1 . . . . . . . 2 Feedback Events 1 | . . . . . . . . . . . . 1 Hackware Fried 1 | . . . . . . . . . . . . 1 Feedback Blocked . | . . . . . . . . . . . . . Robot Schematics Acquired . | . . . . . . . . . . . . . Robots Built . | . . . . . . . . . . . . . Authchips . | . . . . . . . . . . . . . Time . | . . . . . . . . . . . . . Total Robot Build Rating . | . . . . . . . . . . . . . Part Schematics Acquired 4 | . . . 2 2 . . . . . . . . Parts Built 2 | . . . . . . . . . . . . 2 Authchips . | . . . . . . . . . . . . . Time 212 | . . . . . . . . . . . . 212 Total Part Build Rating 12 | . . . . . . . . . . . . 12 Parts Repaired . | . . . . . . . . . . . . . Time . | . . . . . . . . . . . . . Parts Recycled . | . . . . . . . . . . . . . Recycled Matter . | . . . . . . . . . . . . . Retrieved Matter . | . . . . . . . . . . . . . Retrieved Components . | . . . . . . . . . . . . . Parts Scanalyzed 4 | . . . 2 2 . . . . . . . . Part Schematics Acquired 4 | . . . 2 2 . . . . . . . . Parts Damaged 1 | . . . . 1 . . . . . . . . Bothacking | -11 -10 -9 -8 -7 -7 -7 -7 -6 -6 -5 -5 -5 ------------ Run | Yrd Mat Mat Mat Fac Gar Fac Gar Fac DSF Fac Gar Fac Used RIF Installer 1 | . . . . . 1 . . . . . . . Robots Hacked . | . . . . . . . . . . . . . Non-combat . | . . . . . . . . . . . . . Combat . | . . . . . . . . . . . . . Robot Hacks Applied . | . . . . . . . . . . . . . Relay Couplers Released 9 | . . . . . . . 9 . . . . . Machine Destruction 9 | . . . . . . . 9 . . . . . Fabnet Peak Effective % . | . . . . . . . . . . . . . Robots Rewired 14 | . . . . . 14 . . . . . . . Allies Hacked . | . . . . . . . . . . . . . Hacks Repelled . | . . . . . . . . . . . . . Allies | -11 -10 -9 -8 -7 -7 -7 -7 -6 -6 -5 -5 -5 -------- Run | Yrd Mat Mat Mat Fac Gar Fac Gar Fac DSF Fac Gar Fac Total Allies 19 | . 1 . 1 1 14 . 1 . . 1 . . Largest Group 8 | . 1 1 2 3 8 4 2 1 1 2 2 1 Highest-Rated Group 278 | . 57 64 90 128 278 141 134 106 106 160 178 137 Highest-Rated Ally 137 | . 57 64 80 92 98 98 106 106 106 124 134 137 Total Orders . | . . . . . . . . . . . . . Ally Attacks 427 | . 8 14 67 19 95 29 30 . 17 26 41 81 Total Damage 12232 | . 567 409 1407 389 2691 505 896 . 504 760 1335 2769 Kills 117 | . 6 6 17 3 27 7 8 . 3 6 12 22 Allies Corrupted . | . . . . . . . . . . . . . Allies Melted . | . . . . . . . . . . . . . Intel | -11 -10 -9 -8 -7 -7 -7 -7 -6 -6 -5 -5 -5 ------- Run | Yrd Mat Mat Mat Fac Gar Fac Gar Fac DSF Fac Gar Fac Robot Analysis Total 3 | . 1 2 . . . . . . . . . . Derelict Logs Recovered . | . . . . . . . . . . . . . Drone Launches . | . . . . . . . . . . . . . Drone Recoveries . | . . . . . . . . . . . . . Exploration | -11 -10 -9 -8 -7 -7 -7 -7 -6 -6 -5 -5 -5 ------------- Run | Yrd Mat Mat Mat Fac Gar Fac Gar Fac DSF Fac Gar Fac Turns Passed 7748 | 118 274 388 919 536 1446 546 809 39 116 399 1119 1039 Spaces Moved 4197 | 53 160 218 549 384 743 409 420 24 51 195 597 394 Core 5 | 5 . . . . . . . . . . . . Treads . | . . . . . . . . . . . . . Legs . | . . . . . . . . . . . . . Wheels 4192 | 48 160 218 549 384 743 409 420 24 51 195 597 394 Hover . | . . . . . . . . . . . . . Flight . | . . . . . . . . . . . . . Fastest Speed 50 | 50 95 105 100 120 116 120 120 155 125 120 120 135 Average Speed 129 | 86 119 111 115 120 136 120 144 155 133 130 134 152 Slowest Speed 230 | 95 125 130 145 120 230 120 155 155 155 160 135 175 Overloaded Moves . | . . . . . . . . . . . . . Propulsion Burnouts . | . . . . . . . . . . . . . Robots Hopped . | . . . . . . . . . . . . . Cave-ins Triggered . | . . . . . . . . . . . . . Exploration Rate (%) 32 | 3 28 22 65 15 80 16 53 1 46 9 69 12 Regions Visited 12 Branch Regions . Pre-discovered Areas . | . . . . . . . . . . . . . Known Exits Taken 4 | . . . . 1 . 1 . 1 . 1 . . Unknown Exits Taken 4 | 1 1 1 1 . . . . . . . . . Scrap Searched . | . . . . . . . . . . . . . Spaces Dug 12 | . . . . . 12 . . . . . . . Terrain Destroyed 221 | . . 24 2 46 19 33 8 . 24 . 2 63 Melee . | . . . . . . . . . . . . . Projectile 7 | . . . . . . . . . . . 2 5 AOE 214 | . . 24 2 46 19 33 8 . 24 . . 58 Terrain Rammed . | . . . . . . . . . . . . . Walls Destroyed . | . . . . . . . . . . . . . Machines Disabled . | . . . . . . . . . . . . . Actions | -11 -10 -9 -8 -7 -7 -7 -7 -6 -6 -5 -5 -5 --------- Run | Yrd Mat Mat Mat Fac Gar Fac Gar Fac DSF Fac Gar Fac Total 5747 | 91 196 318 716 434 1026 444 562 26 76 305 819 734 Wait 596 | 11 8 44 67 21 25 18 40 . 3 67 51 241 Move 4183 | 52 159 217 548 383 742 408 418 23 50 194 595 394 Hop . | . . . . . . . . . . . . . Pick Up 89 | 5 5 6 11 6 15 . 8 . 2 7 14 10 Fast Attach 50 | 7 1 8 13 1 2 2 1 . 2 2 6 5 Attach 53 | . . 2 4 4 11 3 1 3 . 11 3 11 Detach 11 | . . 3 2 . 1 1 . . . 2 1 1 Swap 59 | . . 5 5 4 7 3 9 . 3 3 13 7 Drop 79 | 1 . 10 13 3 5 1 7 . 5 2 18 14 Fire 412 | 15 23 23 53 12 104 8 38 . 11 17 62 46 Melee 1 | . . . . . . . . . . . . 1 Ram 4 | . . . . . . . . . . . . 4 Kick . | . . . . . . . . . . . . . Crush . | . . . . . . . . . . . . . Escape Stasis 120 | . . . . . 24 . 40 . . . 56 . Rewire 90 | . . . . . 90 . . . . . . . Trap . | . . . . . . . . . . . . . Miscellaneous . | . . . . . . . . . . . . . Route ------- -11/Scrapyard -10/Materials -9/Materials -8/Materials -7/Factory -7/Garrison (discovered 4 exits: *Fac x4) -7/Factory -7/Garrison (discovered 2 exits: *Fac x2) -6/Factory -6/DSF -5/Factory -5/Garrison (discovered 3 exits: *Fac x3) -5/Factory History --------- Turn | Location | Event 26 | -11/Scrapyard | Discovered new exit (range 16) 119 | -11/Scrapyard | Entered Materials 306 | -10/Materials | Build established: Mutant 334 | -10/Materials | Discovered new exit (range 15) 393 | -10/Materials | Entered another Materials area 393 | -9/Materials | Evolved 2 slots: Utility x1, Weapon x1 751 | -9/Materials | Discovered new exit (range 11) 781 | -9/Materials | Entered another Materials area 781 | -8/Materials | Evolved 2 slots: Propulsion x1, Utility x1 860 | -8/Materials | Build established: Gunner 1181 | -8/Materials | First assault squad dispatched 1203 | -8/Materials | Build established: Tank 1270 | -8/Materials | Lost 4 parts (2n1u1w) 1527 | -8/Materials | Build established: Scavenger-Tank 1637 | -8/Materials | Discovered new exit (range 5) 1700 | -8/Materials | Entered Factory 1700 | -7/Factory | Accompanied by 1 ally 1700 | -7/Factory | Evolved 2 slots: Utility x2 2054 | -7/Factory | Build established: Scavenger-Skirmisher 2100 | -7/Factory | First assault squad dispatched 2204 | -7/Factory | Garrison activated, responded to threat 2231 | -7/Factory | Identified exit to Garrison 2236 | -7/Factory | Entered Garrison 2393 | -7/Garrison | Triggered checkpoint 2491 | -7/Garrison | Discovered new exit (range 12) 2530 | -7/Garrison | Triggered checkpoint 2543 | -7/Garrison | Lost 4 parts (2n2w) 2544 | -7/Garrison | Lost 3 allies 2623 | -7/Garrison | Lost 3 parts (3w) 2896 | -7/Garrison | Build established: Scavenger-Tank 2914 | -7/Garrison | Triggered checkpoint 2962 | -7/Garrison | Triggered checkpoint 2964 | -7/Garrison | Triggered checkpoint 3022 | -7/Garrison | Discovered new exit (range 3) 3023 | -7/Garrison | Identified exit to Factory 3150 | -7/Garrison | Triggered checkpoint 3368 | -7/Garrison | Triggered checkpoint 3460 | -7/Garrison | Triggered checkpoint 3473 | -7/Garrison | Discovered exit to Factory (range 14) 3532 | -7/Garrison | Triggered checkpoint 3571 | -7/Garrison | Core integrity fell below 50% 3586 | -7/Garrison | Installed Relay Interface Framework 3660 | -7/Garrison | Discovered exit to Factory (range 9) 3682 | -7/Garrison | Entered Factory 3682 | -7/Factory | Accompanied by 3 allies 3778 | -7/Factory | Lost 3 allies 4085 | -7/Factory | Lost 3 parts (2u1w) 4187 | -7/Factory | Garrison activated, responded to threat 4214 | -7/Factory | Identified exit to Garrison 4228 | -7/Factory | Entered Garrison 4310 | -7/Garrison | Core integrity fell below 20% 4328 | -7/Garrison | Rescued a captive Derelict 4346 | -7/Garrison | Triggered checkpoint 4447 | -7/Garrison | Garrison Relay disabled 4619 | -7/Garrison | Triggered checkpoint 4693 | -7/Garrison | Discovered new exit (range 10) 4719 | -7/Garrison | Triggered checkpoint 4773 | -7/Garrison | Garrison Relay disabled 4815 | -7/Garrison | Identified exit to Factory 4861 | -7/Garrison | Triggered checkpoint 4939 | -7/Garrison | Discovered exit to Factory (range 13) 5037 | -7/Garrison | Entered Factory 5037 | -6/Factory | Evolved 2 slots: Power x1, Utility x1 5075 | -6/Factory | Identified exit to DSF 5076 | -6/Factory | Entered DSF 5097 | -6/DSF | Additional patrols routed to DSF 5140 | -6/DSF | Discovered new exit (range 16) 5158 | -6/DSF | Identified exit to Factory 5192 | -6/DSF | Entered Factory 5192 | -5/Factory | Evolved 2 slots: Utility x2 5458 | -5/Factory | Spotted B-75 Beast 5473 | -5/Factory | Garrison activated, responded to threat 5532 | -5/Factory | Allies destroyed B-75 Beast 5539 | -5/Factory | Lost 9 parts (2p2n2u3w) 5568 | -5/Factory | Identified exit to Garrison 5591 | -5/Factory | Entered Garrison 5591 | -5/Garrison | Accompanied by 1 ally 5592 | -5/Garrison | Triggered checkpoint 5633 | -5/Garrison | Triggered checkpoint 5649 | -5/Garrison | Spotted B-75 Beast 5658 | -5/Garrison | Triggered checkpoint 5687 | -5/Garrison | Destroyed B-75 Beast 5758 | -5/Garrison | Triggered checkpoint 5774 | -5/Garrison | Triggered checkpoint 5775 | -5/Garrison | Core integrity fell below 50% 5839 | -5/Garrison | Destroyed 8 combat bots 5848 | -5/Garrison | Lost 4 parts (1n1u2w) 5949 | -5/Garrison | Spotted B-86 Titan 5957 | -5/Garrison | Discovered new exit (range 12) 6008 | -5/Garrison | Identified exit to Factory 6042 | -5/Garrison | Triggered checkpoint 6208 | -5/Garrison | Triggered checkpoint 6304 | -5/Garrison | Triggered checkpoint 6368 | -5/Garrison | Discovered exit to Factory (range 10) 6522 | -5/Garrison | Triggered checkpoint 6616 | -5/Garrison | Discovered exit to Factory (range 10) 6710 | -5/Garrison | Entered Factory 6889 | -5/Factory | Fabricated Hacking Suite (x1) 7010 | -5/Factory | Build established: Scavenger-Skirmisher 7010 | -5/Factory | First assault squad dispatched 7068 | -5/Factory | Fabricated Centrium Leg (x1) 7654 | -5/Factory | Hacking Suite fried by hacking feedback 7694 | -5/Factory | Core integrity fell below 20% 7710 | -5/Factory | System corruption reached 10% 7741 | -5/Factory | Cargo convoy interrupted 7749 | -5/Factory | Destroyed by X-72 Disruptor with Improved Arc Projector Last Messages --------------- 07743_ Penetrated by Slug. 07743_ Proton Missile Launcher destroyed. 07744_ R-10 Processor collects Carbon-fiber Leg. 07745_ Penetrated by Slug. 07745_ P-70 Sage resets H-66 Slayer, system corruption cleaned. 07746_ G-50 Soldier knocked back. 07746_ HV Slug penetrates G-50 Soldier. 07746_ G-50 Soldier suffers critical hit (Destroy). 07746_ G-50 Soldier knocked back. 07746_ Slug penetrates Wall. 07746_ Penetrated by Slug. 07747_ P-70 Sage resets A-27 Freighter, system corruption cleaned. 07747_ H-66 Slayer knocked back. 07748_ G-50 Soldier knocked back. 07748_ R-10 Processor collects Corrupted Lgt. Nuclear Core. 07748_ Antimatter Reactor destroyed. Map ----- +----------------------------------------------------+ | ### #????????????????????????????????????? | | #????????????????????????????????????? | | #????????????????????????????????????? | | % ##???????????????????????????????????? | | % ! =* T#???????????????????????????????????? | | =* = = #?????????????????????""""""????????? | | ##?????????????????????""""""????????? | | ##########+????#???????""""""????????? | | ?? ??? ??""""""????????? | | ?? ??? #???????????????? | | ===% ?? ?? +?"""""?????????? | | [* *% """" "" " """" """" """" #?"""""?????????? | | [ !| """" """" """" """" """" #?""" ??"?"????? | | = "" """" """" """" """" """" #?? ???"Y"????? | | !!"" """" """" """" """" """" #?? ????"""????? | | *"Y """" """" """" """" """" #? ????????????? | | "" """" """" """" """" """" ##;#????????????? | | " [ #????????????? | | !! #?????"?"?"?"? | | * #???? "?"? | | ###""###############/### #?? " "?"? | | #?####????# !# @ #;;; ?"? | | #?????????# # = ?"? | | #?????????# k % ?"? | | #?????????# ; ! % ?"? | | #####?????????# @ ;== %%* ?"? | | ??????????????# *=h ==%% %%= "?"? | | ??????????????#" ; % % % % ! ???? | | ??????????????#" A R % "" %! | ????? | | ??????????????#" [ #% " """ "%= = ! ????? | | #?????????????#"" =#g " """"" ????? | | #?????????????#" h # """"""" ?????? | | #?????????????# i=x= # ?? ?????? | | #?????????????###### p ;;### ???? ??????? | | #?????????????????? /#??# ##??????##??????? | | #????????????????? hxh???# #???????????????? | | #????????????????? #h ??? #???????????????? | | #???????????????? #p ??? #???????????????? | | #????????????????? ?+ ??? ???????????????? | | #???????????????????#i ??? #???????????????? | | ????????????????????# ???? ?????????????????? | | ????????????????????###??????????????????????????? | | ?????????????????????????????????????????????????? | | ?????????????????????????????????????????????????? | | ?????????????????????????????????????????????????? | | ?????????????????????????????????????????????????? | | ?????????????????????????????????????????????????? | | ?????????????????????????????????????????????????? | | ?????????????????????????????????????????????????? | | ?????????????????????????????????????????????????? | +----------------------------------------------------+ Best States ------------- Heat Dissipation 92 Energy Generation 35 Energy Capacity 535 Matter Stores 300 Matter Capacity 300 Sight Range 16 Robot Scan Range 15 Terrain Scan Density 10 Additional Mass Support 12 Armor Coverage 300 Resistance: TH 25 Evasion (%) 44 Offensive Hacking 30 Item Schematics ----------------- Hacking Suite | -8/Materials | Scanalyzed Seismic Detector | -8/Materials | Scanalyzed Remote Shield | -7/Factory | Scanalyzed Machine Analyzer | -7/Factory | Scanalyzed Robot Schematics ------------------ None Fabricated ------------ Hacking Suite | x1 | -5/Factory Centrium Leg | x1 | -5/Factory | Preloaded Alien Tech Used ----------------- None Achievements -------------- None Challenges ------------ None Player 2 | -11 -10 -9 -8 -7 -7 -7 -7 -6 -6 -5 -5 -5 ---------- Run | Yrd Mat Mat Mat Fac Gar Fac Gar Fac DSF Fac Gar Fac Slots Evolved 10 | . 2 2 2 . . . 2 . 2 . . . Power 1 | . . 1 . . . . . . . . . . Propulsion 5 | . 1 1 1 . . . 1 . 1 . . . Utility 4 | . 1 . 1 . . . 1 . 1 . . . Weapon . | . . . . . . . . . . . . . Parts Attached 153 | . 12 17 19 9 16 . 14 . 6 19 28 13 Parts Lost 35 | . 1 . . . 1 1 2 . 7 8 2 13 Damage Taken 8060 | . 181 218 838 261 373 423 651 . 990 1549 918 1658 Core 1239 | . 51 38 134 55 87 38 53 . 350 215 127 91 Player 2/Cogmind (%) 54 | . 55 63 83 79 23 58 54 . 100 59 57 21 Absorbed by Shields 32 | . . . 7 13 . . . . . 12 . . Damage Inflicted 10314 | . 567 409 1407 389 1348 357 792 . 504 760 1012 2769 Player 2/Cogmind (%) 44 | . 56 36 46 32 39 43 44 . 62 43 35 55 Combat Hostiles Destroyed 89 | . 5 5 14 3 12 7 7 . 3 6 10 17 Player 2/Cogmind (%) 46 | . 62 41 45 33 50 58 41 . 60 54 33 54 Game ------ Seed SpectralHeatNanosword Manual? 0 Play Time 01:22:10 Cumulative 77.7 hours Start 2024.04.11 @ 18:55:05 End 2024.04.11 @ 20:16:55 Sessions 1 Manual Loads 0 Difficulty Rogue Special Mode AFD2020/Player2 Game No. 93 Rogue 93 Adventurer 0 Explorer 0 Win Type - Total 1 Types 1/0/0/0/0/0/0/0/0 Lore% 43 Gallery% 63 Achievement% 49 Wizard Run 0 Options --------- Layout 1 ASCII 0 Keyboard 0 Movement Numpad Keybinds 0 Fullscreen 1 Font 24/Smallcaps Map View 50x35 Zoom Use 0% Tactical HUD 1 Map Filters NONE Filters NONE Steam 1 RUN: f61d7a54-021e-46ee-8ad7-ba811d51eb2a